Cogmind - Beta 10.2 @@@ ROGUE MODE // 2021.12.04 @ 17:22:41 Player: ChromeKnight Result: Destroyed by YI-UF0 with YI-UF0's Doublenader Performance ------------- Evolutions (0) 0 Regions Visited (2) 400 Robots Destroyed (18) 90 Value Destroyed (276) 276 Prototype IDs (0) 0 Alien Tech Used (0) 0 Bonus (-246) -246 TOTAL SCORE: 520 Bonus ------- Friendly Fire -246 Cogmind --------- Core Integrity 0/250 Matter 300/300 Energy 100/100 System Corruption 2% Temperature Cool (0) Movement Core (550) Ox10 Location -10/Mines Parts ------- > --- POWER (1) -------- (None) > --- PROPULSION (2) --- (None) > --- UTILITY (2) ------ Large Storage Unit Large Storage Unit > --- WEAPON (2) ------- (None) > --- INVENTORY (16) --- Light Ion Engine Hover Unit Hover Unit Small Storage Unit High-capacity Matter Pod (200) Hacking Suite Grenade Launcher Peak State ------------ > --- POWER ------------ Ion Engine > --- PROPULSION ------- Aluminum Leg Aluminum Leg > --- UTILITY ---------- Small Storage Unit Large Storage Unit > --- WEAPON ----------- EM Pulse Gun Assault Rifle > --- INVENTORY -------- (None) [Rating: 7] Favorites ----------- Power Ion Engine Engine Ion Engine Propulsion Aluminum Leg Leg Aluminum Leg Utility Large Storage Unit Storage Large Storage Unit Weapon Assault Rifle Energy Gun Small Laser Ballistic Gun Assault Rifle Build | -11 -10 -10 ------- Run | Scr Mat Min Slots Evolved . | . . . Power . | . . . Propulsion . | . . . Utility . | . . . Weapon . | . . . Parts Attached 12 | 6 6 . Power 3 | 1 2 . Engine 3 | 1 2 . Core . | . . . Reactor . | . . . Propulsion 3 | 2 1 . Treads . | . . . Leg 3 | 2 1 . Wheel . | . . . Hover . | . . . Flight . | . . . Utility 3 | 1 2 . Device . | . . . Storage 3 | 1 2 . Processor . | . . . Hackware . | . . . Protection . | . . . Artifact . | . . . Weapon 3 | 2 1 . Energy Gun 2 | 1 1 . Energy Cannon . | . . . Ballistic Gun 1 | 1 . . Ballistic Cannon . | . . . Launcher . | . . . Special Weapon . | . . . Impact Weapon . | . . . Slashing Weapon . | . . . Piercing Weapon . | . . . Special Melee Weapon . | . . . Unidentified Prototypes . | . . . Parts Lost 6 | . 1 5 Power 1 | . . 1 Propulsion 2 | . . 2 Utility . | . . . Weapon 3 | . 1 2 Highest Loss Streak 5 | . 1 5 Average Slot Usage (%) 91 | . 90 94 Engine 13 | . 14 12 Leg 27 | . 28 25 Storage 27 | . 27 28 Energy Gun 7 | . 5 12 Ballistic Gun 13 | . 14 12 Naked Turns . | . . . Heaviest Build 41 | 13 41 40 Greatest Support 20 | 20 20 20 Greatest Overweight (x) 10 | 2 2 10 Average Overweight (x) . | . 1 1 Largest Inventory Capacity 16 | 6 16 16 Average Capacity 15 | 5 15 16 Most Carried 7 | . 6 7 Average Carried 3 | . 2 6 Final Capacity 16 | 6 16 16 Final Carried 7 | . 6 7 Class Distribution -------------------- 100% | Mutant Dominant Class ---------------- Mutant | -10/Materials Mutant | -10/Mines Resources | -11 -10 -10 ----------- Run | Scr Mat Min Matter Collected 727 | 240 484 3 Remotely . | . . . Salvage Created 599 | . 571 28 Parts 54 | . 47 7 Haulers Intercepted 1 | . 1 . Recyclers Shooed 2 | . 1 1 Parts Field Recycled . | . . . Retrieved Matter . | . . . Parts Self-Destructed . | . . . Prevented . | . . . Kills | -11 -10 -10 ------- Run | Scr Mat Min Combat Hostiles Destroyed 8 | . 8 . Guns 8 | . 8 . Classes Destroyed 8 | . 8 . Worker 2 | . 1 1 Builder 3 | . 2 1 Hauler 1 | . 1 . Recycler 2 | . 2 . Operator 1 | . 1 . Watcher 1 | . 1 . Swarmer 3 | . 3 . Grunt 5 | . 5 . Best Kill Streak 5 | . 5 1 Combat Bots Only 4 | . 4 . Max Kills in Single Turn 1 | . 1 1 Gunslinging . | . . . Exploded . | . . . Melee . | . . . Uniques/NPCs Destroyed . | . . . Combat | -11 -10 -10 -------- Run | Scr Mat Min Damage Taken 827 | . 430 397 Core 251 | . 45 206 Absorbed by Shields . | . . . Core Remaining (%) 100 | 100 . . Volleys Fired 84 | 1 71 12 Largest 2 | 2 2 2 Hottest 60 | 60 60 60 Shots Fired 116 | 2 92 22 Gun 116 | 2 92 22 Cannon . | . . . Launcher . | . . . Special . | . . . Kinetic 82 | 1 71 10 Thermal 18 | . 6 12 Explosive . | . . . Electromagnetic 16 | 1 15 . Robot Hit Streak 7 | 2 7 3 Robot Miss Streak 4 | . 4 3 Penetration Max . | . . . Secondary Targets 2 | . 2 . Max Gunslinging Chain 1 | . 1 . Shots Hit Robots 65 | 2 50 13 Core Hits 32 | . 25 7 Critical Hits . | . . . Critical Kills . | . . . Critical Parts Destroyed . | . . . Melee Attacks . | . . . Impact . | . . . Slashing . | . . . Piercing . | . . . Sneak Attacks . | . . . Combat Hostiles . | . . . Follow-up Attacks . | . . . Damage Inflicted 847 | 23 647 177 Guns 838 | 23 642 173 Cannons . | . . . Explosions . | . . . Melee . | . . . Ramming 9 | . 5 4 Kinetic 566 | 11 507 48 Thermal 156 | . 31 125 Explosive . | . . . Electromagnetic 116 | 12 104 . Impact . | . . . Slashing . | . . . Piercing . | . . . Highest Corruption 2 | . . 2 Average Corruption 2 | . . 2 Corruption Purged . | . . . Overload Shots . | . . . Overflow Damage . | . . . Projectiles . | . . . Explosions . | . . . Melee . | . . . Knockbacks . | . . . Impact . | . . . Kinetic . | . . . Secondary . | . . . Self-Inflicted Damage 3 | . 2 1 Shots . | . . . Rammed 5 | . 2 3 Targets Rammed 5 | . 2 3 Kicked . | . . . Crushed . | . . . Highest Temperature 27 | . 27 1 Average Temperature 11 | . 11 1 Received Heat Transfer 249 | . 198 51 Siege Activations . | . . . Robots Corrupted . | . . . Combat Hostiles . | . . . Parts Fried . | . . . Impact Corruptions . | . . . Robots Melted . | . . . Combat Hostiles . | . . . Parts Melted . | . . . Heat Transferred 350 | . 75 275 Parts Sabotaged . | . . . Parts Stolen . | . . . Parts Stripped . | . . . Power Chain Reactions . | . . . Missiles Intercepted . | . . . Alert | -11 -10 -10 ------- Run | Scr Mat Min Peak Influence 180 | . 180 53 Initial 28 | . . 28 Average 72 | . 95 40 Maximum Alert Level . | . . . Low Security (%) 100 | 100 100 100 Level 1 . | . . . Level 2 . | . . . Level 3 . | . . . Level 4 . | . . . Level 5 . | . . . High Security . | . . . Max Security . | . . . Squads Dispatched 2 | . 2 . Investigation . | . . . Extermination . | . . . Reinforcement 2 | . 2 . Assault . | . . . Garrison . | . . . Intercept . | . . . Construction Impeded . | . . . Haulers Reinforced . | . . . Stealth | -11 -10 -10 --------- Run | Scr Mat Min Distress Signals 2 | . 1 1 Communications Jammed . | . . . Distress Signals . | . . . Times Spotted 24 | . 21 3 Peak Tracking Total 5 | . 5 2 Tactical Retreats . | . . . Traps | -11 -10 -10 ------- Run | Scr Mat Min Traps Triggered . | . . . Indirectly . | . . . Trap Hack Attempts . | . . . Triggered . | . . . Disarmed . | . . . Reprogrammed . | . . . Reused . | . . . Traps Extracted . | . . . Installed . | . . . Triggered . | . . . Machines | -11 -10 -10 ---------- Run | Scr Mat Min Machines Disabled . | . . . Max in Single Turn . | . . . Machines Sabotaged . | . . . Garrisons Compromised . | . . . Overloaded Fab Kills . | . . . Fab Network Shutdowns . | . . . Hacking | -11 -10 -10 --------- Run | Scr Mat Min Machines Accessed 1 | . . 1 Terminals 1 | . . 1 Fabricators . | . . . Repair Stations . | . . . Recycling Units . | . . . Scanalyzers . | . . . Garrison Access . | . . . Total Hacks 2 | . . 2 Successful 2 | . . 2 Failed . | . . . Catastrophic . | . . . Database Lockouts . | . . . Manual 1 | . . 1 Terminals 2 | . . 2 Fabricators . | . . . Repair Stations . | . . . Recycling Units . | . . . Scanalyzers . | . . . Garrison Access . | . . . Terminal Hacks 2 | . . 2 Part Schematic 1 | . . 1 Level Access Points 1 | . . 1 Fabricator Hacks . | . . . Repair Station Hacks . | . . . Recycling Unit Hacks . | . . . Scanalyzer . | . . . Garrison Access Hacks . | . . . Unauthorized Hacks . | . . . Terminals . | . . . Fabricators . | . . . Repair Stations . | . . . Recycling Units . | . . . Scanalyzers . | . . . Garrison Access . | . . . Data Cores Recovered . | . . . Used . | . . . Hacking Detections 1 | . . 1 Full Trace Events . | . . . Feedback Events . | . . . Feedback Blocked . | . . . Robot Schematics Acquired . | . . . Robots Built . | . . . Matter . | . . . Time . | . . . Total Robot Build Rating . | . . . Part Schematics Acquired 1 | . . 1 Parts Built . | . . . Matter . | . . . Time . | . . . Total Part Build Rating . | . . . Parts Repaired . | . . . Time . | . . . Parts Recycled . | . . . Recycled Matter . | . . . Retrieved Matter . | . . . Retrieved Components . | . . . Parts Scanalyzed . | . . . Part Schematics Acquired . | . . . Parts Damaged . | . . . Bothacking | -11 -10 -10 ------------ Run | Scr Mat Min Used RIF Installer . | . . . Robots Hacked . | . . . Non-combat . | . . . Combat . | . . . Robot Hacks Applied . | . . . Relay Couplers Released . | . . . Robots Rewired . | . . . Allies Hacked . | . . . Hacks Repelled . | . . . Allies | -11 -10 -10 -------- Run | Scr Mat Min Total Allies . | . . . Largest Group . | . . . Highest-Rated Group . | . . . Highest-Rated Ally . | . . . Total Orders . | . . . Ally Attacks . | . . . Total Damage . | . . . Kills . | . . . Allies Corrupted . | . . . Allies Melted . | . . . Intel | -11 -10 -10 ------- Run | Scr Mat Min Robot Analysis Total . | . . . Derelict Logs Recovered 1 | . . 1 Drone Launches . | . . . Drone Recoveries . | . . . Exploration | -11 -10 -10 ------------- Run | Scr Mat Min Turns Passed 820 | 52 521 247 Spaces Moved 384 | 37 214 133 Core 10 | 9 . 1 Treads . | . . . Legs 374 | 28 214 132 Wheels . | . . . Hover . | . . . Flight . | . . . Fastest Speed 50 | 50 120 150 Average Speed 148 | 109 153 153 Slowest Speed 550 | 150 180 550 Overloaded Moves . | . . . Propulsion Burnouts . | . . . Robots Hopped . | . . . Cave-ins Triggered . | . . . Exploration Rate (%) 22 | 4 31 33 Regions Visited 2 Branch Regions 1 Pre-discovered Areas . | . . . Known Exits Taken . | . . . Unknown Exits Taken 2 | 1 1 . Scrap Searched . | . . . Spaces Dug . | . . . Terrain Destroyed . | . . . Melee . | . . . Projectile . | . . . AOE . | . . . Terrain Rammed . | . . . Walls Destroyed . | . . . Machines Disabled . | . . . Actions | -11 -10 -10 --------- Run | Scr Mat Min Total 504 | 43 312 149 Wait 14 | . 14 . Move 382 | 36 213 133 Hop . | . . . Pick Up 5 | . 4 1 Fast Attach 8 | 6 2 . Attach . | . . . Detach . | . . . Swap 4 | . 4 . Drop 2 | . 2 . Fire 84 | 1 71 12 Melee . | . . . Ram 2 | . . 2 Kick 3 | . 2 1 Crush . | . . . Escape Stasis . | . . . Rewire . | . . . Trap . | . . . Miscellaneous . | . . . Route ------- -11/Scrapyard -10/Materials (discovered 2 exits: *Mat / *Min) -10/Mines (discovered 2 exits: Mat x2) History --------- Turn | Location | Event 14 | -11/Scrapyard | Discovered new exit (range 16) 53 | -11/Scrapyard | Entered Materials 194 | -10/Materials | Discovered new exit (range 14) 307 | -10/Materials | Build established: Mutant 568 | -10/Materials | Discovered new exit (range 5) 574 | -10/Materials | Entered Mines 594 | -10/Mines | Learned Materials stockpile data 642 | -10/Mines | Identified exit to Materials 746 | -10/Mines | YI-UF0 nonchalantly dropped a Grenade Launcher on the ground 812 | -10/Mines | Core integrity fell below 50% 816 | -10/Mines | Core integrity fell below 20% 821 | -10/Mines | Destroyed by YI-UF0 with YI-UF0's Doublenader Last Messages --------------- 00799_ R-06 Scavenger destroyed. 00801_ Ion Engine destroyed. 00803_ The unstable cave ceiling collapses. 00803_ Assault Rifle destroyed. 00805_ Seismic Survey Station disabled. 00807_ Slammed into YI-UF0. 00807_ Aluminum Leg destroyed. 00807_ System corrupted by crushing effect (+2). 00809_ Sml. Laser destroyed. 00809_ Aluminum Leg destroyed. 00813_ The unstable cave ceiling collapses. 00813_ K-01 Serf destroyed. 00814_ The unstable cave ceiling collapses. 00814_ R-06 Scavenger collects Wheel. 00815_ The unstable cave ceiling collapses. 00815_ Slammed into YI-UF0. 00819_ The unstable cave ceiling collapses. 00819_ T-07 Excavator destroyed. 00820_ The unstable cave ceiling collapses. 00821_ Slammed into YI-UF0. Map ----- +----------------------------------------------------+ | | | | | | | | | | | ?????????????????????????????????????????????????? | | ?????????????????????????????????????????????????? | | ?????????????????????????????????????????????????? | | ????????????????????? ???????????????????????????? | | ????????????????????" ??? "??????????????????????? | | ????????????????????" ??? "??????????????????????? | | ??????????????#????? ?? ?????????????????????? | | ??????????????# ????" "?? """????????????????????? | | ??????????????# """ """ """ ???????????????????? | | ??????????????# """ """ """ #??????????????????? | | ??????????????# t #??????????????????? | | ??????????????# " """ """ #??????????????????? | | ??????????????# "" """ #??????????????????? | | ??????????????# """ """ #??????????????????? | | ??????????????# #????####??????????? | | ??????????????# ##??## ##?????????? | | ??????????????# #?## #?????????? | | ??????????????# ### #??????????? | | ?????????????###### ##?????????? | | ?????????????# #?????????? | | ?????????????# @g #?????????? | | ???????# r #?????????? | | ??????# ######## =# #########?? | | ??? ??????????# g =% ##? | | ? ??????????????# = # #? | | ?????????????????# =% ## ## #? | | ?????????????????# # ## ## #? | | ?????????????????# ## ######### #=## #? | | ?????????????????# ?# #???????## #?#%### ##? | | ????????????????## ## #????????## #?#!= #####?? | | ???????????????## ##????????## ###### #?????? | | ???????????????# #?????????####T### ###???? | | ??????????????# #??????????# #???? | | ??????????????## #??????????# """ #???? | | ???????????????## #??????????# """ #???? | | ????????????????#### #??????????# """ #???? | | ???????????????????## #??????????# #???? | | ????????????????????# #??????????# #???? | | ????????????????????# #??????????##########???? | | ???????????????????? #???????????????????????? | | ???????????????????? #???????????????????????? | | ????????????????????# #???????????????????????? | | ????????????????????## ???????????????????????? | | ?????????????????????? ???????????????????????? | | ?????????????????????? ???????????????????????? | +----------------------------------------------------+ Best States ------------- Heat Dissipation 25 Energy Generation 10 Energy Capacity 250 Matter Stores 300 Matter Capacity 300 Sight Range 16 Terrain Scan Density 10 Evasion (%) 40 Item Schematics ----------------- Grenade Launcher | -10/Mines | Hacked Robot Schematics ------------------ None Fabricated ------------ Nothing Alien Tech Used ----------------- None Achievements -------------- None Challenges ------------ None Game ------ Seed NodeWeaponHammer Manual? 0 Play Time 00:07:17 Cumulative 237.3 hours Start 2021.12.04 @ 17:17:20 End 2021.12.04 @ 17:22:41 Sessions 1 Manual Loads 0 Difficulty Rogue Special Mode None Game No. 453 Rogue 298 Adventurer 148 Explorer 7 Win Type - Total 10 Types 8/0/1/1/0/0/0/0/0 Lore% 75 Gallery% 87 Achievement% 65 Wizard Run 0 Options --------- ASCII 0 Keyboard 0 Movement Numpad Keybinds 0 Fullscreen 1 Font 18/SmallcapsGlow Map View 76x50 Tactical HUD 1 Map Filters NONE Filters NONE Steam 1 RUN: 1a4b7c01-3080-4816-b912-da569465c8d1